[Event "*** SCC Grand Prix: Titled Tuesday Blitz"]
[Site "Chess.com"]
[Date "2020.06.02"]
[Round "7"]
[White "OK97"]
[Black "Philosopherrr"]
[Result "1-0"]
[WhiteElo "2772"]
[BlackElo "2528"]
[TimeControl "180+1"]
[EndTime "11:19:12 PDT"]
[Termination "OK97 won by resignation"]

1. Nf3 {[%clk 0:03:00.9]} 1... g6 {[%clk 0:02:58.8]} 2. e4 {[%clk 0:03:00.7]}
2... Bg7 {[%clk 0:02:55.1]} 3. d4 {[%clk 0:03:00.8]} 3... d6 {[%clk 0:02:55.7]}
4. Nc3 {[%clk 0:03:01]} 4... Nd7 {[%clk 0:02:55.9]} 5. Be3 {[%clk 0:02:57.6]}
5... e6 {[%clk 0:02:54.1]} 6. Qd2 {[%clk 0:02:49.6]} 6... a6 {[%clk 0:02:53.3]}
7. a4 {[%clk 0:02:47.7]} 7... h6 {[%clk 0:02:45.3]} 8. a5 {[%clk 0:02:45.2]}
8... Ne7 {[%clk 0:02:45.1]} 9. Be2 {[%clk 0:02:37.7]} 9... g5 {[%clk 0:02:38]}
10. h4 {[%clk 0:02:37]} 10... g4 {[%clk 0:02:38]} 11. Ng1 {[%clk 0:02:29.1]}
11... h5 {[%clk 0:02:28.8]} 12. Bg5 {[%clk 0:02:29]} 12... e5 {[%clk 0:02:22.8]}
13. dxe5 {[%clk 0:02:17.8]} 13... dxe5 {[%clk 0:01:47.7]} 14. Bc4 {[%clk
0:02:08.6]} 14... f6 {[%clk 0:01:47.4]} 15. Be3 {[%clk 0:02:07.7]} 15... c6
{[%clk 0:01:47.7]} 16. Nge2 {[%clk 0:02:00.5]} 16... Qc7 {[%clk 0:01:46.3]} 17.
Na4 {[%clk 0:01:55.8]} 17... Ng6 {[%clk 0:01:27.4]} 18. O-O-O {[%clk 0:01:42.3]}
18... c5 {[%clk 0:01:15]} 19. Nxc5 {[%clk 0:01:24.4]} 19... Nxc5 {[%clk
0:01:13]} 20. Bxc5 {[%clk 0:01:24.2]} 20... Bd7 {[%clk 0:01:10.1]} 21. Bb6
{[%clk 0:01:09.1]} 21... Qc6 {[%clk 0:00:40.8]} 22. Bf7+ {[%clk 0:00:59.1]}
22... Kxf7 {[%clk 0:00:12]} 23. Qxd7+ {[%clk 0:00:58.8]} 23... Qxd7 {[%clk
0:00:12.4]} 24. Rxd7+ {[%clk 0:00:59.2]} 24... Ne7 {[%clk 0:00:13.3]} 25. Nc3
{[%clk 0:00:53.4]} 25... Ke6 {[%clk 0:00:13.3]} 26. Rhd1 {[%clk 0:00:52.4]} 1-0

[Event "*** SCC Grand Prix: Titled Tuesday Blitz"]
[Site "Chess.com"]
[Date "2020.06.02"]
[Round "7"]
[White "Oligan22"]
[Black "icychess54"]
[Result "1-0"]
[WhiteElo "2430"]
[BlackElo "2246"]
[TimeControl "180+1"]
[EndTime "11:19:12 PDT"]
[Termination "Oligan22 won by checkmate"]

1. e4 {[%clk 0:03:00.9]} 1... c5 {[%clk 0:02:58]} 2. Nf3 {[%clk 0:03:00.4]} 2...
d6 {[%clk 0:02:57.3]} 3. d4 {[%clk 0:03:00.3]} 3... cxd4 {[%clk 0:02:55.4]} 4.
Nxd4 {[%clk 0:03:01.2]} 4... Nf6 {[%clk 0:02:55.1]} 5. Nc3 {[%clk 0:03:01.7]}
5... Nc6 {[%clk 0:02:55.4]} 6. f4 {[%clk 0:03:00.5]} 6... e6 {[%clk 0:02:55.2]}
7. Nf3 {[%clk 0:03:00.1]} 7... Be7 {[%clk 0:02:54.4]} 8. Bd3 {[%clk 0:03:00.6]}
8... O-O {[%clk 0:02:50.7]} 9. O-O {[%clk 0:03:01.1]} 9... a6 {[%clk 0:02:46.6]}
10. a3 {[%clk 0:03:01.4]} 10... Qc7 {[%clk 0:02:46.6]} 11. Qe1 {[%clk 0:03:02]}
11... b5 {[%clk 0:02:45.3]} 12. Qg3 {[%clk 0:02:57.9]} 12... Bb7 {[%clk
0:02:35.2]} 13. Bd2 {[%clk 0:02:54.7]} 13... b4 {[%clk 0:02:32.8]} 14. axb4
{[%clk 0:02:54.2]} 14... Nxb4 {[%clk 0:02:33.2]} 15. e5 {[%clk 0:02:46.2]} 15...
Nfd5 {[%clk 0:02:15.8]} 16. Nxd5 {[%clk 0:02:41]} 16... Nxd5 {[%clk 0:02:11.7]}
17. Ng5 {[%clk 0:02:16.6]} 17... h6 {[%clk 0:01:42.8]} 18. Nxe6 {[%clk
0:01:31.7]} 18... fxe6 {[%clk 0:01:37.6]} 19. Qg6 {[%clk 0:01:31.7]} 19... Rfe8
{[%clk 0:00:30.1]} 20. Qh7+ {[%clk 0:01:24.6]} 20... Kf8 {[%clk 0:00:28.4]} 21.
f5 {[%clk 0:01:01.6]} 21... dxe5 {[%clk 0:00:25.3]} 22. fxe6+ {[%clk 0:00:52.4]}
22... Bf6 {[%clk 0:00:25.1]} 23. c4 {[%clk 0:00:45.7]} 23... Nf4 {[%clk
0:00:21.4]} 24. Bb4+ {[%clk 0:00:43.8]} 24... Be7 {[%clk 0:00:12.1]} 25. Qh8#
{[%clk 0:00:43.8]} 1-0

[Event "*** SCC Grand Prix: Titled Tuesday Blitz"]
[Site "Chess.com"]
[Date "2020.06.02"]
[Round "7"]
[White "bulletteemo"]
[Black "OnePeculiarConundrum"]
[Result "1-0"]
[WhiteElo "2533"]
[BlackElo "2237"]
[TimeControl "180+1"]
[EndTime "11:19:13 PDT"]
[Termination "bulletteemo won by resignation"]

1. e4 {[%clk 0:03:00.9]} 1... c5 {[%clk 0:02:59.7]} 2. Nf3 {[%clk 0:02:59.6]}
2... d6 {[%clk 0:03:00]} 3. c3 {[%clk 0:02:59]} 3... Nf6 {[%clk 0:02:59.7]} 4.
h3 {[%clk 0:02:59.6]} 4... a6 {[%clk 0:02:59.4]} 5. Bd3 {[%clk 0:03:00.3]} 5...
e6 {[%clk 0:02:59.2]} 6. O-O {[%clk 0:03:00.9]} 6... b5 {[%clk 0:02:59]} 7. Bc2
{[%clk 0:03:01.6]} 7... Bb7 {[%clk 0:02:58.6]} 8. Re1 {[%clk 0:03:01.3]} 8...
Nbd7 {[%clk 0:02:58]} 9. d4 {[%clk 0:03:01.7]} 9... Be7 {[%clk 0:02:45.1]} 10.
e5 {[%clk 0:03:00.9]} 10... Nd5 {[%clk 0:02:44.5]} 11. Nbd2 {[%clk 0:03:00.7]}
11... dxe5 {[%clk 0:02:38.1]} 12. dxe5 {[%clk 0:03:00.5]} 12... c4 {[%clk
0:02:30.2]} 13. Ne4 {[%clk 0:03:00.1]} 13... h6 {[%clk 0:02:27.8]} 14. Be3
{[%clk 0:02:59.6]} 14... Qc7 {[%clk 0:02:17.9]} 15. Bd4 {[%clk 0:02:58.6]} 15...
Rd8 {[%clk 0:02:15.2]} 16. Nd6+ {[%clk 0:02:36.5]} 16... Bxd6 {[%clk 0:02:04.9]}
17. exd6 {[%clk 0:02:37.4]} 17... Qxd6 {[%clk 0:02:05.2]} 18. Bxg7 {[%clk
0:02:38]} 18... Rg8 {[%clk 0:02:05.1]} 19. Bxh6 {[%clk 0:02:38]} 19... N7f6
{[%clk 0:01:50.3]} 20. Qd4 {[%clk 0:02:29]} 20... Qc6 {[%clk 0:01:47.4]} 21.
Rad1 {[%clk 0:02:11.3]} 21... Ke7 {[%clk 0:01:17.7]} 22. Bg5 {[%clk 0:01:39]}
22... Rxg5 {[%clk 0:00:56.8]} 23. Nxg5 {[%clk 0:01:37.7]} 23... Rg8 {[%clk
0:00:54.8]} 24. Ne4 {[%clk 0:01:31]} 24... Rg6 {[%clk 0:00:34.5]} 25. f3 {[%clk
0:01:21.3]} 25... Rg8 {[%clk 0:00:31.4]} 26. Rd2 {[%clk 0:01:15.6]} 26... Qc7
{[%clk 0:00:31.3]} 27. Qc5+ {[%clk 0:01:15.2]} 27... Qxc5+ {[%clk 0:00:31.6]}
28. Nxc5 {[%clk 0:01:16.1]} 28... Bc8 {[%clk 0:00:31.9]} 29. h4 {[%clk
0:01:12.2]} 29... Nf4 {[%clk 0:00:30]} 30. Ne4 {[%clk 0:01:08.4]} 30... N6d5
{[%clk 0:00:27.9]} 31. g3 {[%clk 0:01:05.2]} 31... f5 {[%clk 0:00:26.3]} 32. Ng5
{[%clk 0:01:03]} 32... Nh5 {[%clk 0:00:25.8]} 33. Rxd5 {[%clk 0:01:01.7]} 33...
Nxg3 {[%clk 0:00:25.9]} 34. Rde5 {[%clk 0:01:00.6]} 34... Nh5 {[%clk 0:00:23.2]}
35. Bxf5 {[%clk 0:00:59.5]} 35... Kf6 {[%clk 0:00:22.8]} 36. Bxe6 {[%clk
0:00:59.4]} 1-0

[Event "*** SCC Grand Prix: Titled Tuesday Blitz"]
[Site "Chess.com"]
[Date "2020.06.02"]
[Round "7"]
[White "PattyCastillo"]
[Black "kidagent"]
[Result "0-1"]
[WhiteElo "1912"]
[BlackElo "2194"]
[TimeControl "180+1"]
[EndTime "11:19:13 PDT"]
[Termination "kidagent won by resignation"]

1. d4 {[%clk 0:03:00.9]} 1... d5 {[%clk 0:02:59.6]} 2. Nf3 {[%clk 0:03:00.4]}
2... Nf6 {[%clk 0:02:59]} 3. e3 {[%clk 0:02:59.4]} 3... Bf5 {[%clk 0:02:52.5]}
4. c4 {[%clk 0:02:57.5]} 4... c6 {[%clk 0:02:52]} 5. Nc3 {[%clk 0:02:56.1]} 5...
e6 {[%clk 0:02:49]} 6. Qb3 {[%clk 0:02:55.7]} 6... Qc8 {[%clk 0:02:47.6]} 7. Bd2
{[%clk 0:02:52.8]} 7... Nbd7 {[%clk 0:02:46.9]} 8. Rc1 {[%clk 0:02:51.9]} 8...
dxc4 {[%clk 0:02:46.8]} 9. Bxc4 {[%clk 0:02:50.8]} 9... Nb6 {[%clk 0:02:44.6]}
10. Be2 {[%clk 0:02:45.7]} 10... Be7 {[%clk 0:02:43.1]} 11. O-O {[%clk
0:02:24.5]} 11... O-O {[%clk 0:02:42.5]} 12. Nh4 {[%clk 0:02:24]} 12... Bg4
{[%clk 0:02:23.6]} 13. Bxg4 {[%clk 0:01:43.3]} 13... Nxg4 {[%clk 0:02:23.4]} 14.
Nf3 {[%clk 0:01:43.4]} 14... Bd6 {[%clk 0:02:02.2]} 15. e4 {[%clk 0:01:36.8]}
15... e5 {[%clk 0:01:58.8]} 16. h3 {[%clk 0:01:32.4]} 16... exd4 {[%clk
0:01:54.7]} 17. Nxd4 {[%clk 0:01:23.2]} 17... Ne5 {[%clk 0:01:45.7]} 18. Nf5
{[%clk 0:01:08.8]} 18... Rd8 {[%clk 0:01:25.3]} 19. Be3 {[%clk 0:00:55.7]} 19...
Bf8 {[%clk 0:01:22.6]} 20. Rfd1 {[%clk 0:00:52.1]} 20... Nbc4 {[%clk 0:01:14.9]}
21. Bg5 {[%clk 0:00:32]} 21... Re8 {[%clk 0:01:01.6]} 22. f4 {[%clk 0:00:19.6]}
22... Na5 {[%clk 0:00:59]} 23. Qc2 {[%clk 0:00:17.6]} 23... Ng6 {[%clk
0:00:56.9]} 24. g3 {[%clk 0:00:16]} 24... b6 {[%clk 0:00:55.6]} 25. Nd5 {[%clk
0:00:12.5]} 25... cxd5 {[%clk 0:00:52.7]} 26. Qxc8 {[%clk 0:00:11.6]} 26...
Raxc8 {[%clk 0:00:52.6]} 27. Rxc8 {[%clk 0:00:11.7]} 27... Rxc8 {[%clk
0:00:52.6]} 28. Nd6 {[%clk 0:00:09]} 28... Bxd6 {[%clk 0:00:51.4]} 0-1

[Event "*** SCC Grand Prix: Titled Tuesday Blitz"]
[Site "Chess.com"]
[Date "2020.06.02"]
[Round "7"]
[White "zmeeed67"]
[Black "vlad_Sid"]
[Result "0-1"]
[WhiteElo "2453"]
[BlackElo "2644"]
[TimeControl "180+1"]
[EndTime "11:19:15 PDT"]
[Termination "vlad_Sid won by resignation"]

1. d4 {[%clk 0:03:00.9]} 1... Nf6 {[%clk 0:02:58.4]} 2. c4 {[%clk 0:03:01.3]}
2... c5 {[%clk 0:02:58.4]} 3. d5 {[%clk 0:03:01.5]} 3... b5 {[%clk 0:02:58.7]}
4. cxb5 {[%clk 0:03:02.4]} 4... a6 {[%clk 0:02:59]} 5. Nc3 {[%clk 0:03:03.3]}
5... g6 {[%clk 0:02:59.2]} 6. e4 {[%clk 0:03:02.8]} 6... d6 {[%clk 0:02:58.9]}
7. Nf3 {[%clk 0:03:02]} 7... Bg7 {[%clk 0:02:59.2]} 8. Bd2 {[%clk 0:03:02.1]}
8... O-O {[%clk 0:02:59.4]} 9. a4 {[%clk 0:03:02.3]} 9... e6 {[%clk 0:02:58.3]}
10. dxe6 {[%clk 0:02:54]} 10... Bxe6 {[%clk 0:02:59.2]} 11. Be2 {[%clk 0:02:45]}
11... Re8 {[%clk 0:02:54]} 12. O-O {[%clk 0:02:44.5]} 12... axb5 {[%clk
0:02:47.7]} 13. axb5 {[%clk 0:02:38.2]} 13... Nbd7 {[%clk 0:02:47.1]} 14. Rxa8
{[%clk 0:02:29.7]} 14... Qxa8 {[%clk 0:02:48]} 15. Bf4 {[%clk 0:02:30.3]} 15...
Nxe4 {[%clk 0:02:29.9]} 16. Nxe4 {[%clk 0:02:30.1]} 16... Qxe4 {[%clk
0:02:30.8]} 17. Bxd6 {[%clk 0:02:29.4]} 17... Bxb2 {[%clk 0:02:22.7]} 18. Ng5
{[%clk 0:02:20.8]} 18... Qb7 {[%clk 0:02:09.4]} 19. Nxe6 {[%clk 0:02:17.5]}
19... Rxe6 {[%clk 0:02:10.3]} 20. Bc4 {[%clk 0:02:17.2]} 20... Rf6 {[%clk
0:02:08.5]} 21. Be7 {[%clk 0:02:09.1]} 21... Rf4 {[%clk 0:02:06.2]} 22. Qd5
{[%clk 0:01:48.3]} 22... Qxd5 {[%clk 0:01:57.8]} 23. Bxd5 {[%clk 0:01:49.2]}
23... Rd4 {[%clk 0:01:57]} 24. Bc6 {[%clk 0:01:42.7]} 24... c4 {[%clk
0:01:49.5]} 25. Bd8 {[%clk 0:01:16.3]} 25... c3 {[%clk 0:01:46.1]} 26. b6 {[%clk
0:01:02.5]} 26... c2 {[%clk 0:01:42.5]} 27. Bg5 {[%clk 0:00:34.6]} 27... Nxb6
{[%clk 0:01:36.2]} 28. Be3 {[%clk 0:00:28.8]} 28... Rd1 {[%clk 0:01:34.7]} 29.
Be4 {[%clk 0:00:17.1]} 29... Rxf1+ {[%clk 0:01:34.1]} 30. Kxf1 {[%clk 0:00:18]}
30... c1=Q+ {[%clk 0:01:34.7]} 31. Bxc1 {[%clk 0:00:18.9]} 31... Bxc1 {[%clk
0:01:35.6]} 32. Ke2 {[%clk 0:00:19.2]} 32... Ba3 {[%clk 0:01:33.5]} 33. Bc6
{[%clk 0:00:19.1]} 33... Bc5 {[%clk 0:01:34.4]} 34. f4 {[%clk 0:00:18.3]} 34...
Kg7 {[%clk 0:01:34.9]} 35. Kf3 {[%clk 0:00:18.5]} 35... f5 {[%clk 0:01:35.2]}
36. h3 {[%clk 0:00:18.6]} 36... Kf6 {[%clk 0:01:35.2]} 37. g4 {[%clk 0:00:18.9]}
37... Bd6 {[%clk 0:01:33.1]} 38. Bb5 {[%clk 0:00:16.7]} 38... Nd5 {[%clk
0:01:32]} 39. g5+ {[%clk 0:00:13.3]} 39... Ke7 {[%clk 0:01:30.7]} 40. Bc4 {[%clk
0:00:13.2]} 40... Nxf4 {[%clk 0:01:30.9]} 41. Bg8 {[%clk 0:00:12]} 41... Nxh3
{[%clk 0:01:29.2]} 42. Bxh7 {[%clk 0:00:12.1]} 42... Kf7 {[%clk 0:01:28.7]} 0-1

[Event "*** SCC Grand Prix: Titled Tuesday Blitz"]
[Site "Chess.com"]
[Date "2020.06.02"]
[Round "7"]
[White "CalinGheorghiu"]
[Black "Balla_Tamas"]
[Result "0-1"]
[WhiteElo "2310"]
[BlackElo "2479"]
[TimeControl "180+1"]
[EndTime "11:19:16 PDT"]
[Termination "Balla_Tamas won by resignation"]

1. d4 {[%clk 0:02:59.1]} 1... f5 {[%clk 0:02:56.3]} 2. g3 {[%clk 0:02:55.6]}
2... Nf6 {[%clk 0:02:55.5]} 3. Bg2 {[%clk 0:02:56]} 3... e6 {[%clk 0:02:56.1]}
4. c4 {[%clk 0:02:52.2]} 4... d5 {[%clk 0:02:56.1]} 5. Nc3 {[%clk 0:02:52.3]}
5... c6 {[%clk 0:02:55.9]} 6. Nh3 {[%clk 0:02:40.6]} 6... Bd6 {[%clk 0:02:52.4]}
7. O-O {[%clk 0:02:40.2]} 7... O-O {[%clk 0:02:51.8]} 8. c5 {[%clk 0:02:38.3]}
8... Be7 {[%clk 0:02:47.8]} 9. Bf4 {[%clk 0:02:35.7]} 9... h6 {[%clk 0:02:45.5]}
10. b4 {[%clk 0:02:28.6]} 10... Nbd7 {[%clk 0:02:42.7]} 11. f3 {[%clk
0:02:04.4]} 11... g5 {[%clk 0:02:40.7]} 12. Be5 {[%clk 0:02:03.1]} 12... Nxe5
{[%clk 0:02:38.8]} 13. dxe5 {[%clk 0:02:01.9]} 13... Nd7 {[%clk 0:02:38.7]} 14.
f4 {[%clk 0:01:50.4]} 14... a5 {[%clk 0:02:33.4]} 15. a3 {[%clk 0:01:47.4]}
15... b6 {[%clk 0:02:33]} 16. Nxd5 {[%clk 0:01:26.6]} 16... cxd5 {[%clk
0:02:15.9]} 17. Bxd5 {[%clk 0:01:23.8]} 17... Ra7 {[%clk 0:01:59.5]} 18. Bxe6+
{[%clk 0:01:22.3]} 18... Kh8 {[%clk 0:01:59.4]} 19. c6 {[%clk 0:00:58.8]} 19...
Nb8 {[%clk 0:01:43.4]} 20. Bxc8 {[%clk 0:00:54.4]} 20... Qxc8 {[%clk 0:01:41.3]}
21. b5 {[%clk 0:00:48.6]} 21... Bc5+ {[%clk 0:01:38.1]} 22. Kh1 {[%clk
0:00:44.9]} 22... Nxc6 {[%clk 0:01:34.8]} 23. e4 {[%clk 0:00:31.4]} 23... g4
{[%clk 0:01:27.1]} 24. Nf2 {[%clk 0:00:17]} 24... Nd4 {[%clk 0:01:22.2]} 25. Nd3
{[%clk 0:00:16.3]} 25... Qa8 {[%clk 0:01:16.5]} 26. Re1 {[%clk 0:00:13.3]} 26...
Rd7 {[%clk 0:01:13.8]} 27. Nxc5 {[%clk 0:00:09.5]} 27... bxc5 {[%clk 0:01:13.4]}
28. e6 {[%clk 0:00:07.9]} 28... Rd6 {[%clk 0:01:11]} 29. h3 {[%clk 0:00:06.3]}
29... Rxe6 {[%clk 0:01:07.6]} 30. hxg4 {[%clk 0:00:05.7]} 30... Rxe4 {[%clk
0:01:07.6]} 31. Kh2 {[%clk 0:00:03.9]} 0-1

[Event "*** SCC Grand Prix: Titled Tuesday Blitz"]
[Site "Chess.com"]
[Date "2020.06.02"]
[Round "7"]
[White "MF1966Idrisov"]
[Black "LamaChampetre"]
[Result "1-0"]
[WhiteElo "2358"]
[BlackElo "2191"]
[TimeControl "180+1"]
[EndTime "11:19:16 PDT"]
[Termination "MF1966Idrisov won on time"]

1. Nf3 {[%clk 0:03:00.9]} 1... g6 {[%clk 0:02:59]} 2. d4 {[%clk 0:02:57.9]} 2...
Nf6 {[%clk 0:02:56.4]} 3. g3 {[%clk 0:02:57.7]} 3... Bg7 {[%clk 0:02:55.7]} 4.
Bg2 {[%clk 0:02:57.8]} 4... d5 {[%clk 0:02:56.6]} 5. O-O {[%clk 0:02:57.5]} 5...
c5 {[%clk 0:02:57.2]} 6. c3 {[%clk 0:02:56.6]} 6... O-O {[%clk 0:02:56.5]} 7.
Bd2 {[%clk 0:02:56.8]} 7... Nbd7 {[%clk 0:02:56.7]} 8. Na3 {[%clk 0:02:56.1]}
8... b6 {[%clk 0:02:56.3]} 9. Be3 {[%clk 0:02:54.6]} 9... Bb7 {[%clk 0:02:55.3]}
10. b4 {[%clk 0:02:48.1]} 10... Ne4 {[%clk 0:02:43.4]} 11. Rc1 {[%clk
0:02:44.2]} 11... Nxc3 {[%clk 0:02:29.9]} 12. Rxc3 {[%clk 0:02:39.8]} 12... cxb4
{[%clk 0:02:29.2]} 13. Rb3 {[%clk 0:02:39.5]} 13... bxa3 {[%clk 0:02:29.3]} 14.
Rxa3 {[%clk 0:02:39.5]} 14... Nf6 {[%clk 0:02:18]} 15. Qa4 {[%clk 0:02:29.9]}
15... Ne4 {[%clk 0:01:59.4]} 16. Nd2 {[%clk 0:02:29.1]} 16... Nxd2 {[%clk
0:01:30.8]} 17. Bxd2 {[%clk 0:02:28.5]} 17... Qd6 {[%clk 0:01:12.6]} 18. Re3
{[%clk 0:02:15.4]} 18... Bc6 {[%clk 0:00:52.5]} 19. Qb4 {[%clk 0:02:15.3]} 19...
Qxb4 {[%clk 0:00:37.1]} 20. Bxb4 {[%clk 0:02:14.3]} 20... Bxd4 {[%clk
0:00:37.1]} 21. Rxe7 {[%clk 0:02:13.5]} 21... Rfe8 {[%clk 0:00:37.3]} 22. Rd1
{[%clk 0:01:58.7]} 22... Bc5 {[%clk 0:00:30.4]} 23. Bxc5 {[%clk 0:01:55.4]}
23... bxc5 {[%clk 0:00:31.3]} 24. Rc7 {[%clk 0:01:55]} 24... Rac8 {[%clk
0:00:25]} 25. Rxc8 {[%clk 0:01:51.7]} 25... Rxc8 {[%clk 0:00:25.9]} 26. Bxd5
{[%clk 0:01:48.4]} 26... Bxd5 {[%clk 0:00:25.7]} 27. Rxd5 {[%clk 0:01:47.2]}
27... c4 {[%clk 0:00:26]} 28. Rd2 {[%clk 0:01:46.9]} 28... c3 {[%clk 0:00:25.6]}
29. Rc2 {[%clk 0:01:46.7]} 29... Kg7 {[%clk 0:00:24.8]} 30. Kg2 {[%clk
0:01:44.8]} 30... Kf6 {[%clk 0:00:24.9]} 31. Kf3 {[%clk 0:01:45]} 31... Ke5
{[%clk 0:00:25.3]} 32. Ke3 {[%clk 0:01:45.2]} 32... f5 {[%clk 0:00:11]} 33. Kd3
{[%clk 0:01:44.5]} 33... Rd8+ {[%clk 0:00:05.1]} 34. Kxc3 {[%clk 0:01:43.9]}
34... Ke4 {[%clk 0:00:05.4]} 35. Kb3 {[%clk 0:01:38.2]} 35... Rb8+ {[%clk
0:00:04.4]} 36. Ka3 {[%clk 0:01:36.8]} 36... Rb7 {[%clk 0:00:03.8]} 37. Rc4+
{[%clk 0:01:35.5]} 37... Kd5 {[%clk 0:00:03.8]} 38. Rb4 {[%clk 0:01:32.6]} 38...
Rc7 {[%clk 0:00:03.4]} 39. Kb3 {[%clk 0:01:27.9]} 1-0

[Event "*** SCC Grand Prix: Titled Tuesday Blitz"]
[Site "Chess.com"]
[Date "2020.06.02"]
[Round "7"]
[White "EugeneRougon"]
[Black "themind1hunter"]
[Result "0-1"]
[WhiteElo "2649"]
[BlackElo "2525"]
[TimeControl "180+1"]
[EndTime "11:19:17 PDT"]
[Termination "themind1hunter won by checkmate"]

1. e4 {[%clk 0:03:00.9]} 1... c5 {[%clk 0:02:59.6]} 2. Nf3 {[%clk 0:03:00.7]}
2... d6 {[%clk 0:02:59.6]} 3. d4 {[%clk 0:03:00.4]} 3... cxd4 {[%clk 0:02:59.7]}
4. Nxd4 {[%clk 0:03:01.3]} 4... Nf6 {[%clk 0:02:59.6]} 5. Nc3 {[%clk 0:03:01.7]}
5... a6 {[%clk 0:02:59.8]} 6. Be3 {[%clk 0:03:01.7]} 6... e5 {[%clk 0:02:58.9]}
7. Nf3 {[%clk 0:03:01.8]} 7... Qc7 {[%clk 0:02:57.3]} 8. a4 {[%clk 0:03:01]}
8... Be6 {[%clk 0:02:50.1]} 9. a5 {[%clk 0:02:54.3]} 9... Nbd7 {[%clk
0:02:49.1]} 10. Be2 {[%clk 0:02:51.4]} 10... h6 {[%clk 0:02:44.7]} 11. O-O
{[%clk 0:02:50.9]} 11... Qc6 {[%clk 0:02:44.5]} 12. Nd2 {[%clk 0:02:32]} 12...
Be7 {[%clk 0:02:39.2]} 13. Ra4 {[%clk 0:02:29.5]} 13... d5 {[%clk 0:02:33.9]}
14. exd5 {[%clk 0:02:13.4]} 14... Nxd5 {[%clk 0:02:29.1]} 15. Nxd5 {[%clk
0:02:08.9]} 15... Bxd5 {[%clk 0:02:27.8]} 16. Rg4 {[%clk 0:02:02.6]} 16... O-O
{[%clk 0:02:24.1]} 17. Bxh6 {[%clk 0:01:57.5]} 17... Qxh6 {[%clk 0:02:21.1]} 18.
Bd3 {[%clk 0:01:28.5]} 18... f5 {[%clk 0:02:16.7]} 19. Rg3 {[%clk 0:01:28.3]}
19... e4 {[%clk 0:02:00.4]} 20. Be2 {[%clk 0:01:18.3]} 20... Ne5 {[%clk
0:01:51.3]} 21. Rh3 {[%clk 0:01:15.6]} 21... Qc6 {[%clk 0:01:46.6]} 22. c4
{[%clk 0:01:09.2]} 22... Bf7 {[%clk 0:01:41.3]} 23. b3 {[%clk 0:01:06.1]} 23...
Rad8 {[%clk 0:01:36.4]} 24. Qc2 {[%clk 0:01:05.6]} 24... Bg5 {[%clk 0:01:35.5]}
25. Nb1 {[%clk 0:01:04.9]} 25... f4 {[%clk 0:01:31.6]} 26. Nc3 {[%clk
0:00:55.8]} 26... Bg6 {[%clk 0:01:30.7]} 27. Bh5 {[%clk 0:00:53]} 27... Bf5
{[%clk 0:01:30.2]} 28. Qe2 {[%clk 0:00:34.9]} 28... Bxh3 {[%clk 0:01:23.8]} 29.
Nxe4 {[%clk 0:00:27.6]} 29... Bxg2 {[%clk 0:01:22.1]} 30. Kxg2 {[%clk
0:00:24.9]} 30... f3+ {[%clk 0:01:17.7]} 31. Bxf3 {[%clk 0:00:25.2]} 31... Nxf3
{[%clk 0:01:18.6]} 32. Kg3 {[%clk 0:00:13.8]} 32... Bh4+ {[%clk 0:01:16.2]} 33.
Kg2 {[%clk 0:00:13.6]} 33... Rde8 {[%clk 0:01:14.4]} 34. Qxf3 {[%clk 0:00:07.2]}
34... Rxf3 {[%clk 0:01:13.2]} 35. Kxf3 {[%clk 0:00:08.1]} 35... Qxe4# {[%clk
0:01:13]} 0-1

[Event "*** SCC Grand Prix: Titled Tuesday Blitz"]
[Site "Chess.com"]
[Date "2020.06.02"]
[Round "7"]
[White "GMSrinath"]
[Black "RobertoJBM"]
[Result "1-0"]
[WhiteElo "2797"]
[BlackElo "2633"]
[TimeControl "180+1"]
[EndTime "11:19:18 PDT"]
[Termination "GMSrinath won by resignation"]

1. e4 {[%clk 0:03:00.9]} 1... c6 {[%clk 0:02:58.9]} 2. d4 {[%clk 0:03:00.6]}
2... d5 {[%clk 0:02:59.8]} 3. exd5 {[%clk 0:03:01.5]} 3... cxd5 {[%clk
0:02:59.3]} 4. Bd3 {[%clk 0:03:01.9]} 4... Nc6 {[%clk 0:02:58.4]} 5. c3 {[%clk
0:03:02.3]} 5... Nf6 {[%clk 0:02:58.1]} 6. Bf4 {[%clk 0:03:02.3]} 6... g6 {[%clk
0:02:57.9]} 7. Nd2 {[%clk 0:03:01.6]} 7... Nh5 {[%clk 0:02:57.8]} 8. Be3 {[%clk
0:03:01.3]} 8... Qc7 {[%clk 0:02:57.9]} 9. g3 {[%clk 0:02:52.3]} 9... Bg7 {[%clk
0:02:54.4]} 10. f4 {[%clk 0:02:52.7]} 10... Nf6 {[%clk 0:02:45.6]} 11. Ngf3
{[%clk 0:02:52.8]} 11... Bf5 {[%clk 0:02:45.5]} 12. Qc2 {[%clk 0:02:49.6]} 12...
Bxd3 {[%clk 0:02:43.9]} 13. Qxd3 {[%clk 0:02:50.5]} 13... O-O {[%clk 0:02:43.3]}
14. f5 {[%clk 0:02:45.2]} 14... Qb6 {[%clk 0:02:01.3]} 15. b3 {[%clk 0:02:29.5]}
15... Rac8 {[%clk 0:01:59.3]} 16. O-O {[%clk 0:02:28.8]} 16... Nb8 {[%clk
0:01:30.7]} 17. Ne5 {[%clk 0:02:22.5]} 17... Nbd7 {[%clk 0:01:30.4]} 18. c4
{[%clk 0:02:15.7]} 18... dxc4 {[%clk 0:01:17.3]} 19. Ndxc4 {[%clk 0:02:16.6]}
19... Qa6 {[%clk 0:01:16]} 20. Bg5 {[%clk 0:02:05]} 20... Rcd8 {[%clk
0:00:43.8]} 21. Qf3 {[%clk 0:01:57.8]} 21... Nxe5 {[%clk 0:00:29.4]} 22. dxe5
{[%clk 0:01:58.7]} 22... Nd5 {[%clk 0:00:30]} 23. f6 {[%clk 0:01:33.9]} 23...
exf6 {[%clk 0:00:29.1]} 24. exf6 {[%clk 0:01:34.8]} 24... Bh8 {[%clk 0:00:29.5]}
25. Rad1 {[%clk 0:01:35.3]} 25... b5 {[%clk 0:00:19.2]} 26. Ne5 {[%clk
0:01:27.9]} 26... Qe6 {[%clk 0:00:12.5]} 27. Rde1 {[%clk 0:01:08.3]} 27... Qb6+
{[%clk 0:00:10.7]} 28. Kh1 {[%clk 0:01:07.9]} 28... Rfe8 {[%clk 0:00:11.3]} 29.
Ng4 {[%clk 0:01:06.5]} 29... h5 {[%clk 0:00:11.8]} 30. Rxe8+ {[%clk 0:01:03.8]}
30... Rxe8 {[%clk 0:00:08.8]} 31. Nh6+ {[%clk 0:01:04.4]} 1-0